Cogmind - Beta 16 @@@ ROGUE MODE // 2026.01.27 @ 23:25:19 Player: mlys Result: Destroyed by Y-45 Defender with Beam Rifle Performance ------------- Evolutions (1) 500 Regions Visited (3) 600 Robots Destroyed (41) 205 Value Destroyed (1148) 1148 Prototype IDs (2) 40 Alien Tech Used (0) 0 Bonus (0) 0 TOTAL SCORE: 2493 Bonus ------- None Cogmind --------- Core Integrity 0/400 Matter 300/300 Energy 265/265 System Corruption 8% Temperature Cool (9) Movement Rolling (115) Ox1 Location -9/Storage Parts ------- > --- POWER (2) -------- Improved Ion Engine > --- PROPULSION (2) --- Compact Wheel > --- UTILITY (3) ------ Small Storage Unit Structural Scanner Improved Signal Interpreter > --- WEAPON (2) ------- Beam Rifle Light Assault Rifle > --- INVENTORY (8) ---- Heat Sink Terrain Scan Processor Seismic Detector Peak State ------------ > --- POWER ------------ Light Ion Engine Improved Ion Engine > --- PROPULSION ------- Wheel Armored Wheel > --- UTILITY ---------- Small Storage Unit Improved Signal Interpreter Improved Light Armor Plating > --- WEAPON ----------- Improved EM Shotgun Improved Assault Rifle > --- INVENTORY -------- Compact Wheel Compact Wheel Seismic Detector Improved Light Armor Plating Beam Rifle Light EM Pulse Cannon Improved Light Cannon [Rating: 20] Favorites ----------- Power Improved Ion Engine Engine Improved Ion Engine Propulsion Aluminum Leg Leg Aluminum Leg Wheel Armored Wheel Utility Small Storage Unit Device Seismic Detector Storage Small Storage Unit Processor Improved Signal Interpreter Protection Improved Light Armor Plating Weapon Improved Light Cannon Energy Gun EM Pulse Gun Energy Cannon Light EM Pulse Cannon Ballistic Gun Shotgun Ballistic Cannon Improved Light Cannon Launcher EMP Blaster Special Weapon Mining Laser Build | -11 -10 -9 -9 ------- Run | Yrd Mat Mat Sto Slots Evolved 2 | . . 2 . Power 1 | . . 1 . Propulsion . | . . . . Utility 1 | . . 1 . Weapon . | . . . . Parts Attached 40 | 6 10 7 17 Power 10 | 1 3 . 6 Engine 10 | 1 3 . 6 Core . | . . . . Reactor . | . . . . Propulsion 7 | 2 . 1 4 Treads . | . . . . Leg 3 | 2 . 1 . Wheel 4 | . . . 4 Hover . | . . . . Flight . | . . . . Utility 8 | 1 3 3 1 Device 2 | . 1 . 1 Storage 1 | 1 . . . Processor 2 | . 1 1 . Hackware . | . . . . Protection 3 | . 1 2 . Artifact . | . . . . Weapon 15 | 2 4 3 6 Energy Gun 6 | 2 . 1 3 Energy Cannon 1 | . . . 1 Ballistic Gun 4 | . 2 . 2 Ballistic Cannon 1 | . . 1 . Launcher 2 | . 1 1 . Special Weapon 1 | . 1 . . Impact Weapon . | . . . . Slashing Weapon . | . . . . Piercing Weapon . | . . . . Special Melee Weapon . | . . . . Unidentified Prototypes 2 | . . . 2 Corrupted Parts 1 | . . . 1 System Corruption 7 | . . . 7 Parts Lost 20 | . . 3 17 Power 7 | . . . 7 Propulsion 4 | . . 1 3 Utility 2 | . . . 2 Weapon 7 | . . 2 5 Highest Loss Streak 9 | . . 2 9 To Critical Strikes 1 | . . . 1 Average Backups 6 | 2 7 5 6 Power . | . 2 . . Propulsion 1 | 1 1 1 1 Utility 1 | . . 1 1 Weapon 2 | . 2 1 2 Tool/Special . | . . . . Unused Backups 6 | . 3 . 3 Power 1 | . 1 . . Propulsion 1 | . 1 . . Utility 2 | . . . 2 Weapon 2 | . 1 . 1 Tool/Special . | . . . . Average Slot Usage (%) 96 | . 96 95 96 Engine 19 | . 14 21 21 Leg 13 | . 28 21 2 Wheel 9 | . . . 18 Device 2 | . 5 . 1 Storage 11 | . 14 11 11 Processor 8 | . 4 10 11 Protection 6 | . . 11 8 Energy Gun 11 | . 14 7 10 Ballistic Gun 5 | . 10 4 3 Ballistic Cannon 4 | . . 4 7 Peak Build Rating 20 | 6 10 18 20 Average Rating 14 | 5 9 16 17 On Entrance 8 | . 6 9 18 Avg Prop Armor Cover (%) . | . . . . Naked Turns . | . . . . Heaviest Build 29 | 14 19 29 29 Greatest Support 32 | 20 20 20 32 Greatest Overweight (x) 2 | . . 2 2 Average Overweight (x) . | . . 1 . Largest Inventory Capacity 8 | 8 8 8 8 Average Capacity 7 | 7 8 8 8 Most Carried 8 | 4 8 7 8 Average Carried 6 | 2 7 5 6 Final Capacity 8 | 8 8 8 8 Final Carried 7 | 4 6 7 3 Class Distribution -------------------- 98% | Mutant Dominant Class ---------------- Mutant | -10/Materials Mutant | -9/Materials Mutant | -9/Storage Resources | -11 -10 -9 -9 ----------- Run | Yrd Mat Mat Sto Matter Collected 1236 | 148 123 341 624 Remotely . | . . . . Salvage Created 1484 | . 145 249 1090 Parts 92 | . 7 20 65 Haulers Intercepted 1 | . . . 1 Recyclers Shooed . | . . . . Parts Field Recycled . | . . . . Retrieved Matter . | . . . . Parts Self-Destructed . | . . . . Prevented . | . . . . Parts Restored . | . . . . Kills | -11 -10 -9 -9 ------- Run | Yrd Mat Mat Sto Combat Hostiles Destroyed 33 | . 4 5 24 Guns 19 | . 4 1 14 Cannons 10 | . . . 10 AOE 4 | . . 4 . Classes Destroyed 9 | . 3 2 4 Worker 3 | . . . 3 Builder 2 | . . 1 1 Hauler 1 | . . . 1 Recycler 1 | . . . 1 Watcher 1 | . 1 . . Swarmer 8 | . 2 . 6 Grunt 14 | . 2 4 8 Brawler 1 | . . . 1 Sentry 10 | . . 1 9 Best Kill Streak 5 | . 2 5 5 Combat Bots Only 4 | . 2 4 4 Max Kills in Single Turn 2 | . 1 2 2 Gunslinging 1 | . . . 1 Exploded 1 | . . 1 . Melee . | . . . . Uniques/NPCs Destroyed . | . . . . Combat | -11 -10 -9 -9 -------- Run | Yrd Mat Mat Sto Hostile Shots Fired 274 | . 26 30 218 Missed 61 | . 8 5 48 Hits 213 | . 18 25 170 Projectile 213 | . 18 25 170 Critical Strikes 7 | . 2 3 2 Damage Taken 2631 | . 192 473 1966 Core 450 | . 40 64 346 Absorbed by Shields . | . . . . Regen/Repaired (Parts) 90 | . . . 90 Core Remaining (%) 92 | 100 84 . . Volleys Fired 131 | . 24 13 94 Largest 2 | . 2 2 2 Hottest 112 | . 100 89 112 Shots Fired 245 | . 44 24 177 Gun 173 | . 40 14 119 Cannon 62 | . . 4 58 Launcher 8 | . 2 6 . Special 2 | . 2 . . Kinetic 115 | . 19 12 84 Thermal 62 | . 2 4 56 Explosive 1 | . . 1 . Electromagnetic 67 | . 23 7 37 Robot Hit Streak 8 | . 7 3 8 Robot Miss Streak 5 | . 4 4 5 Penetration Max . | . . . . Secondary Targets 2 | . 1 . 1 Max Gunslinging Chain 1 | . 1 . 1 Shots Hit Robots 130 | . 22 13 95 Core Hits 66 | . 9 15 42 Critical Kills . | . . . . Critical Parts Destroyed 1 | . 1 . . Critical Strikes 7 | . 1 . 6 Burn 6 | . . . 6 Destroy 1 | . 1 . . Melee Attacks . | . . . . Impact . | . . . . Slashing . | . . . . Piercing . | . . . . Sneak Attacks . | . . . . Combat Hostiles . | . . . . Follow-up Attacks . | . . . . Damage Inflicted 2534 | . 329 512 1693 Guns 1352 | . 275 89 988 Cannons 750 | . . 77 673 Explosions 432 | . 54 346 32 Melee . | . . . . Ramming . | . . . . Kinetic 1107 | . 134 137 836 Thermal 594 | . . 128 466 Explosive 40 | . . 40 . Electromagnetic 778 | . 195 192 391 Impact 15 | . . 15 . Slashing . | . . . . Piercing . | . . . . Highest Corruption 8 | . 2 1 8 Average Corruption 3 | . 2 1 4 Corruption Purged . | . . . . Corruption Blocked . | . . . . Effects 43 | . 6 1 36 Message Errors 5 | . . . 5 Matter Fused 11 | . 2 . 9 Heat Flow Errors 4 | . 2 . 2 Energy Discharges 6 | . 2 1 3 Parts Rejected 1 | . . . 1 Data Loss (minor) 6 | . . . 6 Data Loss (major) 1 | . . . 1 Misfires 6 | . . . 6 Alerts 2 | . . . 2 Weapon Failures 1 | . . . 1 Overload Shots . | . . . . Overflow Damage 26 | . 10 3 13 Projectiles 9 | . . . 9 Explosions 17 | . 10 3 4 Melee . | . . . . Knockbacks 9 | . . 3 6 Impact . | . . . . Kinetic 8 | . . 2 6 Secondary 1 | . . 1 . Self-Inflicted Damage 112 | . . 92 20 Shots 6 | . . 5 1 Rammed . | . . . . Targets Rammed . | . . . . Kicked . | . . . . Crushed . | . . . . Highest Temperature 433 | . 230 141 433 Average Temperature 114 | . 65 49 133 Received Heat Transfer 804 | . 102 198 504 Effects 10 | . . . 10 Shutdowns 4 | . . . 4 Energy Bleed 3 | . . . 3 Interference 3 | . . . 3 Siege Activations . | . . . . Martial Activations . | . . . . Shielding Activations . | . . . . Robots Disrupted . | . . . . Combat Hostiles . | . . . . Robots Corrupted . | . . . . Combat Hostiles . | . . . . Parts Fried . | . . . . Impact Corruptions . | . . . . Robots Melted . | . . . . Combat Hostiles . | . . . . Parts Melted 4 | . . 1 3 Heat Transferred 1941 | . . 287 1654 Parts Sabotaged . | . . . . Parts Stolen . | . . . . Parts Stripped . | . . . . Power Chain Reactions 4 | . . 3 1 Alert | -11 -10 -9 -9 ------- Run | Yrd Mat Mat Sto Maximum Alert Level . | . . . . Low Security (%) 100 | 100 100 100 100 Level 1 . | . . . . Level 2 . | . . . . Level 3 . | . . . . Level 4 . | . . . . Level 5 . | . . . . High Security . | . . . . Max Security . | . . . . Peak Influence 147 | . 50 104 147 Initial . | . . . . Average 36 | . 6 28 58 Influence Increases 1036 | . 131 159 746 Destroy 0b10 Robot/C 660 | . 80 100 480 Destroy 0b10 Robot/NC 40 | . 5 5 30 Destroy Leader 184 | . 12 30 142 Successful Hack 19 | . 2 5 12 Disable Machine 45 | . . . 45 Destroy Structure 28 | . 2 19 7 Lose Combat Pursuer 60 | . 30 . 30 Influence Decreases 907 | . 131 159 617 Time Decay 714 | . 131 129 454 Lost Part 193 | . . 30 163 Squads Dispatched 2 | . . . 2 Investigation . | . . . . Extermination . | . . . . Reinforcement 2 | . . . 2 Assault . | . . . . Garrison . | . . . . Intercept . | . . . . Searches Triggered . | . . . . Construction Impeded . | . . . . Haulers Reinforced . | . . . . Active Scanning Responses . | . . . . Cargo Convoy Interrupts . | . . . . Stealth | -11 -10 -9 -9 --------- Run | Yrd Mat Mat Sto Distress Signals 6 | . 1 2 3 Communications Jammed . | . . . . Distress Signals . | . . . . Times Spotted 56 | . 13 12 31 Peak Tracking Total 6 | . 4 3 6 Tactical Retreats 4 | . 2 . 2 Traps | -11 -10 -9 -9 ------- Run | Yrd Mat Mat Sto Traps Triggered 4 | . 2 . 2 Indirectly 1 | . 1 . . Trap Hack Attempts . | . . . . Triggered . | . . . . Disarmed 9 | . 6 . 3 Reprogrammed . | . . . . Reused . | . . . . Traps Extracted . | . . . . Installed . | . . . . Triggered . | . . . . Machines | -11 -10 -9 -9 ---------- Run | Yrd Mat Mat Sto Machines Disabled 3 | . . . 3 Max in Single Turn 1 | . . . 1 Machines Repaired . | . . . . Machines Dismantled . | . . . . Machines Sabotaged . | . . . . Overloaded Fab Kills . | . . . . Hacking | -11 -10 -9 -9 --------- Run | Yrd Mat Mat Sto Machines Accessed 9 | . 3 1 5 Terminals 8 | . 3 1 4 Fabricators . | . . . . Repair Stations 1 | . . . 1 Recycling Units . | . . . . Scanalyzers . | . . . . Garrison Access . | . . . . Total Hacks 22 | . 6 2 14 Successful 11 | . 3 1 7 Failed 11 | . 3 1 7 Catastrophic . | . . . . Database Lockouts . | . . . . Manual . | . . . . Terminals 18 | . 6 2 10 Fabricators . | . . . . Repair Stations 4 | . . . 4 Recycling Units . | . . . . Scanalyzers . | . . . . Garrison Access . | . . . . Terminal Hacks 9 | . 3 1 5 Record 1 | . 1 . . Locate Traps 1 | . . . 1 Disarm Traps 2 | . 1 . 1 Surveillance Status 1 | . 1 . . Recall Investigation 1 | . . . 1 Hauler Manifests 1 | . . 1 . Zone Layout 2 | . . . 2 Fabricator Hacks . | . . . . Repair Station Hacks 2 | . . . 2 Scan Component 1 | . . . 1 Repair 1 | . . . 1 Recycling Unit Hacks . | . . . . Scanalyzer . | . . . . Garrison Access Hacks . | . . . . Unauthorized Hacks . | . . . . Terminals . | . . . . Fabricators . | . . . . Repair Stations . | . . . . Recycling Units . | . . . . Scanalyzers . | . . . . Garrison Access . | . . . . Data Cores Recovered . | . . . . Used . | . . . . Hacking Detections 5 | . 1 . 4 Full Trace Events . | . . . . Feedback Events . | . . . . Feedback Blocked . | . . . . Robot Schematics Acquired . | . . . . Robots Built . | . . . . Authchips . | . . . . Time . | . . . . Total Robot Build Rating . | . . . . Part Schematics Acquired . | . . . . Parts Built . | . . . . Authchips . | . . . . Time . | . . . . Total Part Build Rating . | . . . . Part Studies Acquired . | . . . . Parts Repaired 1 | . . . 1 Time 38 | . . . 38 Parts Recycled . | . . . . Recycled Matter . | . . . . Retrieved Matter . | . . . . Retrieved Components . | . . . . Parts Scanalyzed . | . . . . Part Schematics Acquired . | . . . . Parts Damaged . | . . . . Bothacking | -11 -10 -9 -9 ------------ Run | Yrd Mat Mat Sto Used RIF Installer . | . . . . Robots Hacked . | . . . . Non-combat . | . . . . Combat . | . . . . Robot Hacks Applied . | . . . . Relay Couplers Released . | . . . . Fabnet Peak Effective % . | . . . . Robots Rewired . | . . . . Allies Hacked . | . . . . Hacks Repelled . | . . . . Allies | -11 -10 -9 -9 -------- Run | Yrd Mat Mat Sto Total Allies . | . . . . Largest Group . | . . . . Highest-Rated Group . | . . . . Highest-Rated Ally . | . . . . Total Orders . | . . . . Ally Attacks . | . . . . Total Damage . | . . . . Kills . | . . . . Allies Corrupted . | . . . . Allies Melted . | . . . . Intel | -11 -10 -9 -9 ------- Run | Yrd Mat Mat Sto Active Infowar (turns) 475 | . 321 . 154 Structural 154 | . . . 154 Seismic 321 | . 321 . . Robot Analysis Total . | . . . . Derelict Logs Recovered . | . . . . Drone Launches . | . . . . Drone Recoveries . | . . . . Exploration | -11 -10 -9 -9 ------------- Run | Yrd Mat Mat Sto Turns Passed 2781 | 140 764 472 1405 Spaces Moved 1762 | 109 492 218 943 Core 5 | 5 . . . Treads . | . . . . Legs 893 | 104 492 218 79 Wheels 864 | . . . 864 Hover . | . . . . Flight . | . . . . Fastest Speed 50 | 50 120 120 85 Average Speed 122 | 116 120 190 108 Slowest Speed 260 | 120 120 260 260 Overloaded Moves . | . . . . Propulsion Burnouts . | . . . . Robots Hopped . | . . . . Potential Cave-ins . | . . . . Cave-ins Triggered . | . . . . Exploration Rate (%) 38 | 6 58 15 75 Regions Visited 3 Branch Regions 1 Pre-discovered Areas . | . . . . Known Exits Taken 2 | . 1 1 . Unknown Exits Taken 1 | 1 . . . Scrap Searched . | . . . . Spaces Dug 2 | . 2 . . Terrain Destroyed 24 | . 2 17 5 Melee . | . . . . Projectile 5 | . 2 . 3 AOE 19 | . . 17 2 Terrain Rammed . | . . . . Walls Destroyed . | . . . . Machines Disabled . | . . . . Actions | -11 -10 -9 -9 --------- Run | Yrd Mat Mat Sto Total 2136 | 118 618 250 1150 Wait 143 | . 72 . 71 Move 1759 | 108 491 217 943 Hop . | . . . . Pick Up 23 | 4 7 6 6 Fast Attach 25 | 6 5 3 11 Attach 16 | . 1 5 10 Detach 1 | . 1 . . Swap 18 | . 6 3 9 Drop 20 | . 11 3 6 Fire 131 | . 24 13 94 Melee . | . . . . Ram . | . . . . Kick . | . . . . Crush . | . . . . Escape Stasis . | . . . . Rewire . | . . . . Trap . | . . . . Miscellaneous . | . . . . Route ------- -11/Scrapyard -10/Materials (discovered 2 exits: *Mat / [*Min]) -9/Materials -9/Storage History --------- Turn | Location | Event 2 | -11/Scrapyard | Met Revision 17 5 | -11/Scrapyard | Discovered new exit (range 16) 141 | -11/Scrapyard | Entered Materials 305 | -10/Materials | Discovered new exit (range 15) 314 | -10/Materials | Build established: Mutant 604 | -10/Materials | Discovered new exit (range 8) 657 | -10/Materials | Identified exit to Materials 905 | -10/Materials | Entered another Materials area 905 | -9/Materials | Evolved 2 slots: Power x1, Utility x1 1251 | -9/Materials | Discovered new exit (range 5) 1258 | -9/Materials | Identified exit to Storage 1377 | -9/Materials | Entered Storage 2044 | -9/Storage | Core integrity fell below 50% 2115 | -9/Storage | Repaired Imp. Light Armor Plating 2338 | -9/Storage | Lost 3 parts (1p1n1w) 2694 | -9/Storage | Core integrity fell below 20% 2753 | -9/Storage | Lost 9 parts (3p2n4w) 2782 | -9/Storage | Destroyed by Y-45 Defender with Beam Rifle Last Messages --------------- K-01 Serf collects debris. Acquired 1 matter. K-01 Serf collects debris. S-10 Pest destroyed. Acquired 1 matter. Acquired Beam Rifle. [Achievement: Hydra] K-01 Serf collects debris. Acquired 10 matter. K-01 Serf collects debris. System corrupted: Matter fused (-10). S-10 Pest destroyed. K-01 Serf destroyed. K-01 Serf collects debris. Acquired 14 matter. K-01 Serf cleans the Storage Shell. R-06 Scavenger collects Med. Matter Pod. K-01 Serf collects debris. System corrupted: Component data lost. Imp. Ion Engine destroyed. Map ----- +----------------------------------------------------+ | ????????????????????????????# | | ??????????????????????????####/### | | ??????????????????????????# = | | ??????????????????????????#%! """ | | ?????????????????????????##%!%""" | | ?????????????????????????# %%""" | | ?????????????????????????## | | ??????????????????????????# " | | ??????????????????????????# % % Y | | ??????????????????????????# " | | ?????? + ???????????????# | | ?????? # ???????????????##" "### | | ?????? # # ??????????????#"R"#?? | | ????? # # ?????????????#"""#?? | | ?????### ##"?????????????#####?? | | ????? #= #"????????????###????? | | ????? # #"????????????###????? | | ????? + Y ##???????????"" ""???? | | ???"" # #?????????# """ """ #? | | ???"" # ########### """ """ ## | | ??? ## ############ # | | ???"" ## # ## ## | | ???"" ## # """ ## #? | | ???"" ## # """" " ## #? | | ??? ## # " "" " ## #? | | ??? ## @ + " "" " ######+##+##? | | ??? ## # " """" #####= ##? | | ???##+## # """ + %== ##? | | ???## # %= #####!% [ ##? | | ???## ###############=%##+### | | ???######+###### !! #%=## | | ???### ## !! # %## | | ?????# """ ""## ! #=*## | | ?????# """ Y"# "T"% # ## | | ?????# """ ""## % # ## | | ?????# ####+###+### ## | | ?????# """ #### ## | | ?????# """ #?## ## | | ?????# """ #######+#### ## | | ?????# # ## ## | | ?????###### ### """"" ## ## | | ??????????###?# " " # ##+## | | ??????????????# """"" + | | ??????????????# """"" # | | ??????????????# " " # ##### | | ??????????????# """"" ## ###### | | ??????????????# ## #### | | ??????????????############ ##?# | | ??????????????###????????# #### | | ???????????????"########## #### | +----------------------------------------------------+ Best States ------------- Heat Dissipation 28 Energy Generation 19 Energy Capacity 430 Matter Stores 300 Matter Capacity 300 Sight Range 16 Terrain Scan Density 10 Armor Coverage 150 Propulsion Shielding 33 Evasion (%) 55 Item Schematics ----------------- None Robot Schematics ------------------ None Fabricated ------------ Nothing Repaired ---------- Imp. Light Armor Plating | 50% | -9/Storage Studied --------- None Alien Tech Used ----------------- None Achievements -------------- Hydra Challenges ------------ None Game ------ Seed CobblerMetafiberChip Manual? 0 Play Time 00:28:18 Cumulative 5.5 hours Start 2026.01.17 @ 12:12:14 End 2026.01.27 @ 23:25:19 Sessions 5 Manual Loads 0 Difficulty Rogue Special Mode None Game No. 14 Rogue 14 Adventurer 0 Explorer 0 Win Type - Total 0 Types 0/0/0/0/0/0/0/0/0/0 Lore% 2 Gallery% 10 Achievement% 10 Wizard Run 0 Options --------- Layout 1 ASCII 0 Keyboard 0 Movement Vi Keybinds 0 Fullscreen 1 Font 24/Smallcaps Map View 50x35 Zoom Use 0% Tactical HUD 0 Map Filters NONE Filters NONE Steam 1 RUN: 43325e98-7058-4df2-833a-b63ba9061b19